fUSD/lending_fUSD_20250804
["ID","MTS","AMOUNT","RATE_DAILY","PERIOD"]
[377291927,1754322632317,-105.38543032,0.00034247,2]
[377291928,1754322632327,-150.0,0.00037646,120]
[377291929,1754322632337,-189.17352101,0.00037783,120]
[377291930,1754322632346,-299.5,0.00037793,120]
[377291931,1754322632356,-70.22440707,0.00039067,5]
[377291932,1754322632368,-1529.77559293,0.00039067,5]
[377291933,1754322632377,-300.0,0.00039067,5]
[377291934,1754322632387,-600.0,0.00039068,7]
[377291935,1754322632397,-458.12360017,0.00039068,7]
[377291936,1754322632409,-141.87639983,0.00039068,7]
[377291937,1754322632419,-600.0,0.00039068,7]
[377291938,1754322632428,-191.30662358,0.00039068,7]
[377291939,1754322632440,-408.69337642,0.00039068,7]
[377291940,1754322632450,-329.71,0.00039068,7]
[377291941,1754322632459,-296.1,0.00039247,2]
[377291943,1754322632469,-164.176799,0.000397,2]
[377291945,1754322632479,-150.0,0.000399,2]
[377291946,1754322632489,-1668.18592383,0.000399,41]
[377291947,1754322632499,-6.65385359,0.00039914,2]
[377291948,1754322632510,-493.34614641,0.00039914,2]
[377291949,1754322632521,-194.10104953,0.00039914,2]
[377291950,1754322632591,-305.89895047,0.00039914,2]
[377291951,1754322632601,-419.52158359,0.00039914,2]
[377291952,1754322632611,-438.75626494,0.00039914,2]
[377291953,1754322632623,-61.24373506,0.00039914,2]
[377291954,1754322632633,-446.3477224,0.00039914,2]
[377291955,1754322632643,-878.47533117,0.0004,30]
[377291956,1754322632655,-121.58387074,0.0004,30]
[377291957,1754322632665,-236.06033508,0.0004,30]
[377291959,1754322632677,-763.93966492,0.0004,30]
[377291961,1754322632687,-1668.18592375,0.00040314,42]
[377291963,1754322632697,-1668.18592375,0.00040728,43]
[377291965,1754322632706,-296.1,0.00040978,2]
[377291967,1754322632717,-200.0,0.00041096,20]
[377291969,1754322632726,-1668.18592375,0.00041141,44]
[377291971,1754322632736,-184.85,0.00041277,2]
[377291973,1754322632746,-3041.22,0.00041277,2]
[377291975,1754322632756,-1000.0,0.00041277,2]
[377291977,1754322632766,-1668.18592375,0.00041555,44]
[377291979,1754322632776,-800.0,0.00041868,5]
[377291981,1754322632786,-1668.18592375,0.00041969,45]
[377291982,1754322632795,-1668.18592375,0.00042383,46]
[377291983,1754322632805,-237.11481258,0.00042708,120]
[377291984,1754322632833,-58.98518742,0.00042708,120]
[377291985,1754322632843,-301.29014939,0.00042797,47]
[377291986,1754322632856,-1366.89577436,0.00042797,47]
[377291987,1754322632865,-184.85,0.00042825,2]
[377291989,1754322632874,-176.54424568,0.00043,2]
[377291991,1754322632885,-1668.18592375,0.0004321,48]
[377291993,1754322632895,-466.7,0.00043228,30]
[377291995,1754322632904,-165.39,0.00043502,30]
[377291997,1754322632916,-374.86824015,0.00043624,48]
[377292000,1754322632929,-1019.45859305,0.00043624,48]
[377292002,1754322632941,-262.29700291,0.00043624,48]
[377292194,1754322639133,-11.56208764,0.00043624,48]
[377292195,1754322639143,-250.0,0.00043663,120]
[377292196,1754322639153,-40.02932598,0.00043711,3]
[377292197,1754322639166,-111.97067402,0.00043711,3]
[377292198,1754322639176,-279.768,0.00043711,68]
[377292199,1754322639186,-858.08677147,0.00044038,49]
[377292200,1754322639198,-532.2565633,0.00044038,49]
[377292201,1754322639236,-277.84258898,0.00044038,49]
[377292202,1754322639246,-416.16316643,0.00044187,30]
[377292203,1754322639257,-83.83683357,0.00044187,30]
[377292204,1754322639267,-200.0,0.00044202,2]
[377292205,1754322639276,-1053.54,0.00044313,2]
[377292206,1754322639285,-151.0,0.00044347,120]
[377292207,1754322639295,-164.13,0.00044361,2]
[377292208,1754322639305,-184.85,0.00044373,2]
[377292209,1754322639314,-536.66,0.00044382,30]
[377292210,1754322639323,-296.1,0.00044439,120]
[377292211,1754322639333,-1385.931171,0.00044452,50]
[377292212,1754322639345,-282.25475275,0.00044452,50]
[377292213,1754322639355,-380.0,0.00044466,2]
[377292214,1754322639366,-1008.64,0.0004452,120]
[377292215,1754322639375,-158.22,0.00044573,120]
[377292216,1754322639386,-575.44524725,0.00044634,2]
[377292224,1754322640315,-1533.79475275,0.00044634,2]
[377292225,1754322640326,-666.0,0.00044715,3]
[377292226,1754322640335,-1668.18592375,0.00044866,51]
[377292227,1754322640346,-371.0,0.00045,120]
[377292228,1754322640355,-1000.0,0.00045,120]
[377292229,1754322640365,-1000.0,0.00045205,120]
[377292230,1754322640376,-3010.14916471,0.00045207,2]
[377292231,1754322640386,-1668.18592375,0.00045279,52]
[377292232,1754322640396,-530.45,0.00045307,2]
[377292233,1754322640406,-236.0,0.00045491,2]
[377292234,1754322640416,-170.04,0.00045557,2]
[377292235,1754322640426,-1668.18592375,0.00045693,53]
[377292236,1754322640436,-151.0,0.00045725,120]
[377292237,1754322640446,-500.0,0.00045903,2]
[377292238,1754322640455,-470.27882571,0.00045903,2]
[377292239,1754322640467,-29.72117429,0.00045903,2]
[377292240,1754322640477,-500.0,0.00045903,2]
[377292241,1754322640486,-500.0,0.00045903,2]
[377292242,1754322640496,-545.76809848,0.00045903,2]
[377292243,1754322640507,-184.85,0.00045921,2]
[377292244,1754322640516,-2491.25,0.00045931,2]
[377292245,1754322640527,-512.0,0.00045977,10]
[377292246,1754322640536,-1668.18592375,0.00046107,53]
[377292247,1754322640546,-296.1,0.00046169,120]
[377292248,1754322640556,-1000.0,0.00046437,2]
[377292249,1754322640566,-150.0,0.00046473,120]
[377292250,1754322640576,-1668.18592375,0.00046521,54]
[377292251,1754322640585,-2000.0,0.000466,2]
[377292252,1754322640595,-512.0,0.00046614,10]
[377292253,1754322640605,-152.0,0.00046678,4]
[377292254,1754322640615,-299.004583,0.00046736,14]
[377292255,1754322640624,-151.0,0.00046736,14]
[377292256,1754322640634,-9999.99,0.00046737,2]
[377292257,1754322640643,-1668.18592375,0.00046934,55]
[377292258,1754322640653,-151.0,0.00047102,120]
[377292259,1754322640663,-718.16,0.00047178,30]
[377292260,1754322640674,-151.85,0.00047247,120]
[377292261,1754322640683,-512.0,0.00047252,10]
[377292262,1754322640693,-1668.18592375,0.00047348,56]
[377292263,1754322640703,-184.85,0.00047469,2]
[377292264,1754322640712,-249.07,0.00047541,120]
[377292265,1754322640723,-530.45,0.00047572,2]
[377292266,1754322640733,-888.0,0.00047668,14]
[377292267,1754322640742,-1668.18592375,0.00047762,57]
[377292268,1754322640752,-3883.0242,0.00047845,2]
[377292269,1754322640762,-216.05687978,0.00047845,24]
[377292270,1754322640772,-1746.01436337,0.00047845,120]
[377292271,1754322640782,-512.0,0.00047889,10]
[377292272,1754322640792,-296.1,0.00047899,120]
[377292273,1754322640802,-498.47,0.000479,2]
[377292274,1754322640811,-1000.0,0.000479,2]
[377292275,1754322640821,-2500.0,0.000479,2]
[377292276,1754322640831,-564.29028261,0.00047908,120]
[377292277,1754322640841,-2855.82,0.00047945,120]
[377292278,1754322640851,-1155.47477626,0.00047945,120]
[377292279,1754322640863,-1700.34522374,0.00047945,120]
[377292280,1754322640873,-2855.82,0.00047945,120]
[377292282,1754322640883,-2855.82,0.00047945,120]
[377292284,1754322640893,-2855.82,0.00047945,120]
[377292286,1754322640903,-2855.82,0.00047945,120]
[377292288,1754322640915,-2855.82,0.00047945,120]
[377292290,1754322640926,-2855.82,0.00047945,120]
[377292291,1754322640936,-2855.82,0.00047945,120]
[377292292,1754322640945,-2855.82,0.00047945,120]
[377292293,1754322640955,-2855.82,0.00047945,120]
[377292295,1754322640966,-2855.82,0.00047945,120]
[377292296,1754322640977,-2855.82,0.00047945,120]
[377292298,1754322640986,-2855.82,0.00047945,120]
[377292300,1754322640997,-2855.82,0.00047945,120]
[377292301,1754322641006,-2855.82,0.00047945,120]
[377292303,1754322641016,-2855.82,0.00047945,120]
[377292304,1754322641025,-2855.82,0.00047945,120]
[377292305,1754322641035,-2855.82,0.00047945,120]
[377292306,1754322641045,-2855.82,0.00047945,120]
[377292307,1754322641054,-2855.82,0.00047945,120]
[377292308,1754322641064,-2855.82,0.00047945,120]
[377292309,1754322641073,-2855.82,0.00047945,120]
[377292310,1754322641083,-2466.46200845,0.00047945,120]
[377292311,1754322641096,-389.51799155,0.00047945,120]
[377292312,1754322641107,-158.05555554,0.0004795,120]
[377292313,1754322641117,-1746.01436324,0.00047953,120]
[377292314,1754322641127,-500.0,0.00047973,10]
[377292315,1754322641137,-500.0,0.00047973,10]
[377292316,1754322641146,-500.0,0.00047973,10]
[377292317,1754322641156,-500.0,0.00047973,10]
[377292318,1754322641166,-500.0,0.00047973,10]
[377292319,1754322641176,-500.0,0.00047973,5]
[377292320,1754322641186,-500.0,0.00047973,10]
[377292321,1754322641196,-500.0,0.00047973,10]
[377292322,1754322641206,-500.0,0.00047973,10]
[377292323,1754322641216,-500.0,0.00047973,10]
[377292324,1754322641228,-1579.79,0.00047989,120]
[377292325,1754322641238,-942.68095396,0.00047999,120]
[377292326,1754322641247,-500.0,0.00047999,120]
[377292327,1754322641257,-495.40545263,0.00047999,120]
[377292328,1754322641269,-500.0,0.00047999,120]
[377292329,1754322641279,-200.6487526,0.00047999,31]
[377292330,1754322641288,-381.5492435,0.00047999,120]
[377292331,1754322641299,-500.0,0.00047999,120]
[377292332,1754322641308,-500.0,0.00047999,120]
[377292333,1754322641319,-500.0,0.00047999,120]
[377292334,1754322641329,-500.0,0.00047999,120]
[377292335,1754322641339,-500.0,0.00047999,120]
[377292336,1754322641350,-500.0,0.00047999,120]
[377292337,1754322641361,-500.0,0.00047999,120]
[377292338,1754322641370,-500.0,0.00047999,120]
[377292339,1754322641380,-500.0,0.00047999,120]
[377292340,1754322641389,-231.12871731,0.00047999,120]
[377292341,1754322641398,-349.69249787,0.00047999,120]
[377292342,1754322641408,-499.99999999,0.00047999,120]
[377292343,1754322641418,-395.17550505,0.00047999,31]
[377292344,1754322641428,-69470.48321835,0.00048,120]
[377292345,1754322641475,-914.78535684,0.00048,120]
[377292346,1754322641506,-1820.06760619,0.00048,120]
[377292347,1754322641518,-355.59473485,0.00048,120]
[377292348,1754322641548,-3340.408409,0.00048,120]
[377292349,1754322641561,-3637.0794694,0.00048,120]
[377292350,1754322641573,-1256.53287005,0.00048,120]
[377292351,1754322641615,-2228.20196353,0.00048,120]
[377292357,1754322643450,-1000.0,0.00046,120]
[377292358,1754322643460,-888.0,0.000471,3]
[377292359,1754322643468,-9953.39753,0.00048,120]
[377292360,1754322643482,-2841.29997,0.00048,120]
[377292361,1754322643690,-3903.96392246,0.00048,120]
[377292362,1754322643702,-3218.79666933,0.00048,120]
[377292363,1754322643712,-1500.0,0.00048,120]
[377292364,1754322643722,-519.87929689,0.00048,120]
[377292365,1754322643732,-400.0,0.00048,120]
[377292366,1754322643741,-38.32403378,0.00048,120]
[377292371,1754322643822,-361.67596622,0.00048,120]
[377292373,1754322643833,-400.0,0.00048,120]
[377292374,1754322643843,-400.0,0.00048,120]
[377292375,1754322643853,-272.0,0.00048,90]
[377292376,1754322643863,-185.0,0.00048,90]
[377292377,1754322643872,-1301.79403378,0.00048,5]
[377292378,1754322643884,-13055.56125933,0.00048,5]
[377292379,1754322643893,-200.0,0.00048,32]
[377292380,1754322643903,-1746.01436324,0.00048061,120]
[377292381,1754322643915,-1746.01436324,0.00048169,120]
[377292382,1754322643926,-1668.18592375,0.00048176,57]
[377292383,1754322643935,-984.85,0.00048176,120]
[377292384,1754322643945,-151.0,0.00048179,14]
[377292385,1754322643954,-151.0,0.00048179,14]
[377292386,1754322643965,-350.194967,0.00048179,14]
[377292387,1754322643975,-350.194967,0.00048179,14]
[377292388,1754322643984,-395.312278,0.00048179,14]
[377292389,1754322643995,-395.312278,0.00048179,14]
[377292390,1754322644004,-151.648145,0.000482,14]
[377292391,1754322644014,-151.0,0.000482,14]
[377292392,1754322644024,-350.194967,0.000482,14]
[377292393,1754322644034,-350.194967,0.000482,14]
[377292394,1754322644043,-395.312278,0.000482,14]
[377292395,1754322644053,-395.312278,0.000482,14]
[377292396,1754322644063,-1746.01436324,0.00048278,120]
[377292397,1754322644072,-272.0,0.00048356,90]
[377292398,1754322644082,-185.0,0.00048356,90]
[377292399,1754322644092,-1746.01436324,0.00048386,120]
[377292400,1754322644102,-984.85,0.0004845,120]
[377292401,1754322644111,-500.0,0.0004847,3]
[377292402,1754322644121,-700.0,0.0004847,3]
[377292403,1754322644131,-800.0,0.0004847,3]
[377292404,1754322644141,-500.0,0.00048473,10]
[377292405,1754322644151,-540.36676375,0.00048473,10]
[377292406,1754322644160,-500.0,0.00048473,10]
[377292407,1754322644170,-501.17301044,0.00048473,10]
[377292408,1754322644179,-500.0,0.00048473,10]
[377292409,1754322644189,-989.85,0.0004848,120]
[377292410,1754322644199,-989.84999999,0.0004848,120]
[377292411,1754322644208,-989.85,0.0004848,120]
[377292412,1754322644218,-151.0,0.0004848,120]
[377292413,1754322644228,-150.0,0.00048489,2]
[377292414,1754322644238,-4307.91848812,0.0004849,4]
[377292420,1754322646433,-1000.0,0.00047,120]
[377292421,1754322646444,-888.0,0.000476,3]
[377292422,1754322646455,-1549.2,0.0004849,4]
[377292423,1754322646467,-2514.79991346,0.0004849,4]
[377292424,1754322646481,-792.61568064,0.0004849,4]
[377292425,1754322646569,-11116.86554408,0.0004849,4]
[377292426,1754322646580,-1746.01436324,0.00048494,120]
[377292427,1754322646594,-600.0,0.00048499,18]
[377292428,1754322646607,-600.0,0.00048499,18]
[377292429,1754322646617,-600.0,0.00048499,18]
[377292430,1754322646627,-600.0,0.00048499,18]
[377292431,1754322646637,-600.0,0.00048499,18]
[377292432,1754322646647,-600.0,0.00048499,18]
[377292433,1754322646657,-600.0,0.00048499,18]
[377292434,1754322646667,-600.0,0.00048499,18]
[377292435,1754322646678,-600.0,0.00048499,18]
[377292436,1754322646687,-600.0,0.00048499,18]
[377292437,1754322646697,-600.0,0.00048499,38]
[377292438,1754322646708,-159.85,0.00048499,2]
[377292439,1754322646719,-888.0,0.00048499,14]
[377292440,1754322646729,-888.0,0.000485,120]
[377292441,1754322646739,-287.77358,0.000485,14]
[377292442,1754322646749,-287.77358,0.000485,14]
[377292443,1754322646759,-151.0,0.000485,14]
[377292444,1754322646770,-151.0,0.000485,14]
[377292445,1754322646781,-151.0,0.000485,14]
[377292446,1754322646791,-350.194967,0.000485,14]
[377292447,1754322646800,-350.194967,0.000485,14]
[377292448,1754322646811,-395.312278,0.000485,14]
[377292449,1754322646821,-686.715932,0.000485,14]
[377292450,1754322646830,-686.715932,0.000485,14]
[377292451,1754322646840,-395.312278,0.000485,14]
[377292452,1754322646851,-686.715932,0.000485,14]
[377292453,1754322646860,-686.715932,0.000485,14]
[377292454,1754322646870,-1000.0,0.000485,2]
[377292455,1754322646880,-888.0,0.000485,120]
[377292456,1754322646890,-151.0,0.00048515,14]
[377292457,1754322646900,-350.194967,0.00048515,14]
[377292458,1754322646909,-350.194967,0.00048515,14]
[377292459,1754322646922,-395.312278,0.00048515,14]
[377292460,1754322646932,-395.312278,0.00048515,14]
[377292461,1754322646942,-500.0,0.00048521,10]
[377292462,1754322646951,-512.0,0.00048527,12]
[377292463,1754322646962,-1668.18592375,0.0004859,58]
[377292464,1754322646977,-1746.01436324,0.00048602,120]
[377292465,1754322646987,-551.81502879,0.00048655,2]
[377292466,1754322646999,-329.71,0.0004869,14]
[377292467,1754322647009,-1102.91471342,0.0004871,120]
[377292468,1754322647022,-643.09964982,0.0004871,120]
[377292469,1754322647039,-524.90035018,0.00048724,120]
[377292470,1754322647075,-459.94964982,0.00048724,120]
[377292471,1754322647085,-888.0,0.00048757,3]
[377292472,1754322647096,-178.19756731,0.00048773,2]
[377292473,1754322647105,-1746.01436324,0.00048818,120]
[377292474,1754322647115,-703.29366415,0.0004882,2]
[377292475,1754322647125,-428.0,0.00048893,7]
[377292476,1754322647135,-218.86392654,0.00048896,15]
[377292477,1754322647145,-249.07,0.00048911,120]
[377292478,1754322647155,-1746.01436324,0.00048927,120]
[377292479,1754322647164,-1461.34833144,0.00048972,15]
[377292480,1754322647202,-571.39935378,0.000475,120]
[377292485,1754322688794,161.0,0.00021096,3]
[377292664,1754322761174,5000.0,0.0002097,2]
[377292665,1754322761215,5000.0,0.0002052,2]
[377292666,1754322761341,157.6,0.00020848,2]
[377292667,1754322761520,2324.2,0.0002076,2]
[377292668,1754322761577,150.11,0.00021964,2]
[377292669,1754322764791,7472.02920387,0.0002072,2]
[377292670,1754322764819,17527.97079613,0.0002072,2]
[377292671,1754322764854,6499.69,0.00020826,2]
[377292702,1754322770582,5000.0,0.00020402,2]
[377292703,1754322770635,5000.0,0.00020337,2]
[377292704,1754322770715,5000.0,0.00020653,2]
[377292705,1754322770756,5000.0,0.00020147,2]
[377292706,1754322770803,2500.0,0.00020217,2]
[377292707,1754322771260,2500.0,0.00020771,2]
[377292708,1754322779890,500.0,0.00023703,2]
[377292709,1754322780631,472.33920387,0.00023703,2]
[377292710,1754322780660,27.66079613,0.00023703,2]
[377292711,1754322781423,500.0,0.00023703,2]
[377292712,1754322783784,500.0,0.00023703,2]
[377292713,1754322784189,500.0,0.00023703,2]
[377292714,1754322785176,500.0,0.00023703,2]
[377292716,1754322790424,5000.0,0.00020808,2]
[377292717,1754322790478,5000.0,0.00020898,2]
[377292718,1754322790513,5000.0,0.00020623,2]
[377292719,1754322790563,2570.37,0.00020752,2]
[377292720,1754322791007,325.21,0.00020862,2]
[377292721,1754322791730,151.33,0.00013699,2]
[377292722,1754322792914,5000.0,0.00020026,2]
[377292723,1754322792969,5000.0,0.00020295,2]
[377292724,1754322793077,2098.96,0.000203,2]
[377292725,1754322797338,2557.98,0.00020202,2]
[377292726,1754322797521,2592.02,0.00020492,2]
[377292727,1754322799431,2782.71,0.000203,2]
[377292728,1754322799472,301.93,0.00021636,2]
[377292731,1754322823101,584.0,0.0003013,120]
[377292732,1754322825941,781.0,0.0003013,120]
[377292733,1754322832109,150.0,0.00020615,2]
[377292734,1754322847029,300.0,0.0002863,120]
[377292735,1754322847100,300.0,0.00028181,120]
[377292736,1754322848664,-151.33,0.00026027,2]
[377292737,1754322848690,-27.02084537,0.0002863,2]
[377292738,1754322850415,300.0,0.0002863,120]
[377292744,1754322889168,311.0,0.0003013,120]
[377292745,1754322891862,488.0,0.0003013,120]
[377292776,1754323369079,800.0,0.00030137,120]
[377292790,1754323505392,175.0,0.00018,60]
[377292791,1754323505551,163.7,0.000245,30]
[377292822,1754323763044,-162.69256007,0.00028329,2]
[377292823,1754323763066,-72.33685687,0.00028329,2]
[377292829,1754323804672,400.0,0.00030137,120]
[377292830,1754323808004,152.26,0.00013699,2]
[377292835,1754323823467,534.47662,0.0002601,2]
[377292836,1754323823728,534.47662,0.0002601,2]
[377292837,1754323824034,534.47662,0.0002601,2]
[377292838,1754323824271,534.47662,0.0002601,2]
[377292839,1754323824519,534.47664,0.0002601,2]
[377293168,1754323841773,-152.26,0.00027397,2]
[377293170,1754323841784,-1964.25501524,0.00028229,2]
[377293172,1754323841794,-1200.0,0.00028328,2]
[377293174,1754323841804,-39399.04563946,0.00028329,2]
[377293267,1754323842691,-97735.53481467,0.00028329,2]
[377293269,1754323842701,-300.0,0.00028428,2]
[377293271,1754323842711,-160.39948461,0.00028529,2]
[377293274,1754323842720,-403.55883949,0.0002863,2]
[377293276,1754323842730,-1200.78,0.0002863,2]
[377293278,1754323842739,-304.39071876,0.0002863,2]
[377293280,1754323842749,-400.0,0.0002863,2]
[377293281,1754323842759,-199.95289261,0.0002863,2]
[377293283,1754323842769,-270.62036277,0.00028673,5]
[377293285,1754323842778,-1111.29094413,0.000289,20]
[377293288,1754323842787,-500.0,0.00029927,5]
[377293290,1754323842797,-508.76516942,0.00029927,5]
[377293292,1754323842807,-500.0,0.00029927,5]
[377293293,1754323842816,-508.1816931,0.00029927,5]
[377293295,1754323842826,-500.0,0.00029927,2]
[377293297,1754323842835,-1000.0,0.00030475,5]
[377293300,1754323842844,-642.92869453,0.00030475,5]
[377293301,1754323842854,-300.0,0.00030689,2]
[377293304,1754323842863,-1680.0,0.00030717,2]
[377293305,1754323842873,-300.0,0.00031162,120]
[377293308,1754323842883,-250.0,0.00031162,2]
[377293310,1754323842892,-250.0,0.00031272,2]
[377293311,1754323842902,-371.12000123,0.00031932,2]
[377293313,1754323842912,-2351.0,0.00033307,3]
[377293315,1754323842922,-176.51,0.00033548,2]
[377293317,1754323842931,-17904.34399985,0.000336,2]
[377293319,1754323842940,-1000.0,0.00033699,2]
[377293322,1754323842950,-10000.000001,0.000337,7]
[377293324,1754323842959,-151.0,0.00034402,2]
[377293326,1754323842968,-182.0,0.00034402,2]
[377293328,1754323842978,-599.39878055,0.00034631,2]
[377293330,1754323842987,-10000.0,0.000347,7]
[377293332,1754323842997,-962.0755203,0.00035315,2]
[377293334,1754323843007,-17904.3439998,0.00035522,2]
[377293336,1754323843016,-500.0,0.00035679,5]
[377293338,1754323843026,-305.643,0.00035679,42]
[377293340,1754323843036,-10000.0,0.000357,7]
[377293342,1754323843045,-543.8,0.00035798,2]
[377293344,1754323843054,-478.93,0.00035876,2]
[377293346,1754323843064,-460.27,0.000361,2]
[377293348,1754323843073,-3292.0,0.00036115,3]
[377293350,1754323843082,-962.0755203,0.00036173,2]
[377293352,1754323843092,-150.0,0.00036286,120]
[377293354,1754323843101,-10000.0,0.000367,10]
[377293356,1754323843110,-6188.90720332,0.000367,2]
[377293358,1754323843120,-188.7,0.00036897,2]
[377293360,1754323843129,-150.0,0.00036905,120]
[377293362,1754323843139,-750.44,0.00036971,2]
[377293364,1754323843149,-962.0755203,0.00037031,2]
[377293366,1754323843158,-1854.41,0.00037434,2]
[377293368,1754323843168,-1082.93,0.00037442,7]
[377293370,1754323843178,-500.0,0.00037443,15]
[377293372,1754323843188,-17904.3439998,0.00037444,2]
[377293374,1754323843198,-460.27,0.00037453,2]
[377293376,1754323843208,-165.62,0.0003748,2]
[377293378,1754323843217,-543.8,0.00037528,2]
[377293380,1754323843227,-10000.0,0.000377,14]
[377293382,1754323843236,-962.0755203,0.00037889,2]
[377293384,1754323843245,-150.0,0.00038356,12]
[377293386,1754323843255,-168.72,0.00038562,2]
[377293388,1754323843265,-962.0755203,0.00038747,2]
[377293391,1754323843276,-460.27,0.00038807,2]
[377293394,1754323843289,-150.0,0.00038878,120]
[377293397,1754323843300,-4059.0,0.0003916,5]
[377293400,1754323843312,-543.8,0.00039258,2]
[377293402,1754323843322,-17904.3439998,0.00039367,2]
[377293404,1754323843331,-284.27816202,0.0003958,2]
[377293406,1754323843345,-962.0755203,0.00039605,2]
[377293408,1754323843355,-160.0,0.000398,34]
[377293410,1754323843365,-252.18109,0.00039802,2]
[377293412,1754323843375,-595.1334,0.0004,120]
[377293415,1754323843385,-150.0,0.00040039,2]
[377293418,1754323843395,-460.27,0.00040161,2]
[377293421,1754323843404,-528.883608,0.00040175,2]
[377293423,1754323843414,-674.06734353,0.00040312,2]
[377293427,1754323843424,-819.25107906,0.00040448,2]
[377293430,1754323843434,-962.0755203,0.00040463,120]
[377293435,1754323843444,-499.60345689,0.00040513,5]
[377293440,1754323843454,-578.74296604,0.00040555,5]
[377293443,1754323843464,-500.0,0.00040555,5]
[377293448,1754323843474,-500.0,0.00040555,5]
[377293452,1754323843483,-500.0,0.00040555,5]
[377293454,1754323843492,-500.0,0.00040555,5]
[377293457,1754323843501,-500.0,0.00040555,5]
[377293459,1754323843512,-500.0,0.00040555,5]
[377293462,1754323843521,-162.65140671,0.00040555,5]
[377293464,1754323843530,-964.43481459,0.00040585,2]
[377293467,1754323843540,-500.0,0.00040665,5]
[377293470,1754323843550,-500.0,0.00040665,5]
[377293472,1754323843559,-500.0,0.00040665,5]
[377293475,1754323843569,-500.0,0.00040665,5]
[377293477,1754323843579,-500.0,0.00040665,5]
[377293479,1754323843588,-170.74890238,0.00040665,5]
[377293481,1754323843598,-500.0,0.00040665,5]
[377293483,1754323843608,-500.0,0.00040665,2]
[377293485,1754323843617,-500.0,0.00040665,5]
[377293487,1754323843627,-499.30992589,0.00040665,5]
[377293489,1754323843636,-1109.61855012,0.00040721,2]
[377293490,1754323843646,-1254.80228564,0.00040858,2]
[377293514,1754323843980,-543.8,0.00040989,2]
[377293516,1754323843992,-1399.98602117,0.00040994,2]
[377293518,1754323844002,-588.5555353,0.00041,120]
[377293520,1754323844013,-1000.0,0.00041096,30]
[377293523,1754323844022,-1000.0,0.00041096,30]
[377293524,1754323844031,-1000.0,0.00041096,30]
[377293526,1754323844041,-1000.0,0.00041096,30]
[377293529,1754323844051,-1000.0,0.00041096,30]
[377293531,1754323844061,-1000.0,0.00041096,30]
[377293533,1754323844071,-1000.0,0.00041096,30]
[377293535,1754323844080,-1000.0,0.00041096,30]
[377293537,1754323844089,-1000.0,0.00041096,30]
[377293539,1754323844098,-1000.0,0.00041096,30]
[377293541,1754323844108,-1000.0,0.00041096,30]
[377293543,1754323844118,-1000.0,0.00041096,30]
[377293545,1754323844128,-1000.0,0.00041096,30]
[377293547,1754323844138,-1000.0,0.00041096,30]
[377293549,1754323844148,-629.0,0.00041096,30]
[377293551,1754323844157,-152.26,0.00041096,2]
[377293553,1754323844167,-500.71859585,0.00041103,10]
[377293555,1754323844176,-575.82222738,0.00041103,10]
[377293557,1754323844186,-526.77461878,0.00041103,10]
[377293559,1754323844196,-1000.0,0.00041103,10]
[377293561,1754323844206,-1545.1697567,0.00041131,2]
[377293563,1754323844215,-1000.0,0.00041176,2]
[377293565,1754323844225,-287.24012995,0.00041177,15]
[377293567,1754323844234,-12547.42277099,0.00041177,15]
[377293569,1754323844244,-766.61104042,0.00041177,17]
[377293571,1754323844253,-1000.0,0.00041212,10]
[377293573,1754323844263,-1005.91722869,0.00041212,10]